bitfinex-derivatives/quotes_BNBF0:USTF0_20250523
["timestamp","ask_amount","ask_price","bid_price","bid_amount"]
[1748006837507,1.214,668.2,668.04,0.54376528]
[1748006837712,1.214,668.2,668.05,0.54376528]
[1748006837911,1.214,668.2,668.06,0.54376528]
[1748006838111,1.214,668.2,668.07,0.54376528]
[1748006838316,1.214,668.2,668.08,0.54376528]
[1748006838616,1.214,668.2,668.09,0.54376528]
[1748006838810,1.214,668.2,668.1,0.54376528]
[1748006839010,1.214,668.2,668.11,0.54376528]
[1748006839216,1.214,668.2,668.12,0.54376528]
[1748006839410,1.214,668.2,668.13,0.54376528]
[1748006839611,1.214,668.2,668.14,0.54376528]
[1748006839813,1.214,668.2,668.15,0.54384412]
[1748006840010,1.214,668.2,668.16,0.54384412]
[1748006840211,1.214,668.2,668.17,0.54384412]
[1748006840410,1.214,668.2,668.18,0.54384412]
[1748006840615,1.214,668.2,668.19,0.54384412]
[1748006841517,1.214,668.2,668.19,0.54387748]
[1748006841715,1.214,668.2,668.19,0.54389117]
[1748006845116,1.214,668.2,668.19,0.5438063]
[1748006846919,1.214,668.2,668.19,0.54383504]
[1748006849321,1.214,668.2,667.88,1.07204565]
[1748006849620,1.214,668.2,667.92,1.07204565]
[1748006849819,1.214,668.2,667.93,0.54401243]
[1748006850018,1.214,668.2,667.94,0.54401243]
[1748006850219,1.194,668.19,667.95,0.54401243]
[1748006850419,1.194,668.19,667.96,0.54392135]
[1748006850620,1.194,668.19,667.97,0.54392135]
[1748006850820,1.194,668.19,667.98,0.54392135]
[1748006851020,1.194,668.19,667.99,0.54392135]
[1748006851220,1.194,668.19,668.0,0.54392135]
[1748006851413,1.194,668.19,668.01,0.54392135]
[1748006851614,1.194,668.19,668.02,0.54392135]
[1748006851821,1.194,668.19,668.03,0.54392135]
[1748006852014,1.194,668.19,668.04,0.54392135]
[1748006852221,1.194,668.19,668.05,0.54392135]
[1748006852415,1.194,668.19,668.06,0.54392135]
[1748006852621,1.194,668.19,668.07,0.54392135]
[1748006852929,1.194,668.19,668.08,0.54392135]
[1748006853121,1.194,668.19,668.09,0.54392135]
[1748006853322,1.194,668.19,668.1,0.54392135]
[1748006853523,1.194,668.19,668.11,0.54392135]
[1748006853719,1.194,668.19,668.12,0.54392135]
[1748006853923,1.194,668.19,668.13,0.54392135]
[1748006854124,1.194,668.19,668.14,0.54374139]
[1748006854328,1.194,668.19,668.15,0.54374139]
[1748006854524,1.194,668.19,668.16,0.54374139]
[1748006854727,1.194,668.19,667.82,1.07204565]
[1748006854920,1.194,668.19,667.83,0.54382357]
[1748006855123,1.194,668.19,667.84,0.54382357]
[1748006855330,1.194,668.19,667.85,0.54382357]
[1748006855623,1.194,668.19,667.86,0.54382357]
[1748006855826,1.194,668.19,667.87,0.5439097]
[1748006856028,1.194,668.19,667.88,0.5439097]
[1748006856229,1.194,668.19,667.89,0.5439097]
[1748006856522,1.194,668.19,667.72,1.07204565]
[1748006856727,1.194,668.19,667.73,0.54416765]
[1748006856926,1.194,668.19,667.74,0.54416765]
[1748006857127,1.194,668.19,667.75,0.54416765]
[1748006857329,1.194,668.19,667.76,0.54416765]
[1748006857528,1.194,668.19,667.77,0.54416765]
[1748006857826,1.194,668.19,667.78,0.54416765]
[1748006858027,1.194,668.19,667.79,0.54416765]
[1748006858228,1.194,668.19,667.8,0.54416765]
[1748006858526,1.194,668.19,667.81,0.54416765]
[1748006858726,1.194,668.19,667.82,0.54416765]
[1748006858926,1.194,668.19,667.83,0.54416765]
[1748006859123,1.194,668.19,667.84,0.54416765]
[1748006859322,1.194,668.19,667.85,0.54400517]
[1748006859523,1.194,668.19,667.49,1.07204565]
[1748006859724,1.194,668.19,667.5,0.54384781]
[1748006859923,1.194,668.19,667.51,0.54384781]
[1748006860126,1.194,668.19,667.52,0.54384781]
[1748006860332,1.194,668.19,667.53,0.54384781]
[1748006860630,1.194,668.19,667.54,0.54384781]
[1748006860828,1.194,668.19,667.55,0.54384781]
[1748006861029,1.194,668.19,667.56,0.54384781]
[1748006861328,1.194,668.19,667.57,0.54368657]
[1748006861528,1.194,668.19,667.58,0.54368657]
[1748006861728,1.194,668.19,667.59,0.54368657]
[1748006861933,1.194,668.19,667.6,0.54368657]
[1748006862230,1.194,668.19,667.61,0.54368657]
[1748006862430,1.194,668.19,667.46,1.07204565]
[1748006862431,1.194,668.19,667.62,0.54368657]
[1748006862625,1.194,668.19,667.63,0.54368657]
[1748006862826,1.194,668.19,667.64,0.54368657]
[1748006863026,1.194,668.19,667.65,0.54368657]
[1748006863226,1.194,668.19,667.66,0.54368657]
[1748006863429,1.194,668.19,667.67,0.54368657]
[1748006863625,1.194,668.19,667.68,0.54368657]
[1748006863829,1.194,668.19,667.46,1.07204565]
[1748006863830,1.194,668.19,667.69,0.54368657]
[1748006864029,1.194,668.19,667.7,0.54327892]
[1748006864230,1.194,668.19,667.71,0.54327892]
[1748006864526,1.194,668.19,667.72,0.54327892]
[1748006864731,1.194,668.19,667.73,0.54317119]
[1748006865027,1.194,668.19,667.74,0.54317119]
[1748006865232,1.194,668.19,667.75,0.54307601]
[1748006865433,1.194,668.19,667.76,0.54307601]
[1748006865731,1.194,668.19,667.77,0.54307601]
[1748006865930,1.194,668.19,667.78,0.54307601]
[1748006866128,1.194,668.19,667.79,0.54307601]
[1748006866326,1.194,668.19,667.41,1.07204565]
[1748006866526,1.194,668.19,667.42,0.54289564]
[1748006866729,1.194,668.19,667.43,0.54289564]
[1748006866929,1.194,668.19,667.44,0.54289564]
[1748006867130,1.194,668.19,667.45,0.54289564]
[1748006867332,1.194,668.19,667.46,0.54289564]
[1748006867633,1.194,668.19,667.47,0.54289564]
[1748006867932,1.368,668.18,667.48,0.54289564]
[1748006868133,1.368,668.18,667.49,0.54289564]
[1748006868333,1.368,668.18,667.5,0.54290906]
[1748006868527,1.368,668.18,667.51,0.54290906]
[1748006868832,1.368,668.18,667.41,1.07204565]
[1748006868833,1.368,668.18,667.52,0.54290906]
[1748006869032,1.368,668.18,667.53,0.54290906]
[1748006869333,1.368,668.18,667.54,0.54290906]
[1748006869631,1.368,668.18,667.55,0.54290906]
[1748006869832,1.368,668.18,667.56,0.54290906]
[1748006870033,1.368,668.18,667.57,0.54290906]
[1748006870234,1.368,668.18,667.58,0.54290906]
[1748006870427,1.368,668.18,667.31,1.07204565]
[1748006870428,1.368,668.18,667.59,0.54290906]
[1748006870632,1.368,668.18,667.6,0.54290906]
[1748006870835,1.368,668.18,667.61,0.54290906]
[1748006871034,1.368,668.18,667.62,0.54290906]
[1748006871234,1.368,668.18,667.63,0.54290906]
[1748006871431,1.368,668.18,667.64,0.54290906]
[1748006871631,1.368,668.18,667.65,0.54290906]
[1748006871836,1.368,668.18,667.66,0.54232555]
[1748006872136,1.368,668.18,667.67,0.54231684]
[1748006872337,1.368,668.18,667.26,1.07204565]
[1748006872538,1.368,668.18,667.27,0.54221249]
[1748006872738,1.368,668.18,667.28,0.54221249]
[1748006872940,1.368,668.18,667.29,0.54221249]
[1748006873238,1.368,668.18,667.3,0.54221249]
[1748006873438,1.368,668.18,667.31,0.54221249]
[1748006873636,1.368,668.18,667.32,0.54221249]
[1748006873835,1.368,668.18,667.33,0.54221249]
[1748006874035,1.368,668.18,667.34,0.54221249]
[1748006874235,1.368,668.18,667.35,0.54221249]
[1748006874435,1.368,668.18,667.36,0.54221249]
[1748006874637,1.368,668.18,667.37,0.54221249]
[1748006874939,1.368,668.18,667.38,0.54221249]
[1748006875139,1.368,668.18,667.39,0.54221249]
[1748006875343,1.368,668.18,667.4,0.54221249]
[1748006875536,1.368,668.18,667.41,0.54221249]
[1748006875735,1.368,668.18,667.42,0.54221249]
[1748006875939,1.368,668.18,667.43,0.54221249]
[1748006876140,1.368,668.18,667.44,0.54221249]
[1748006876341,1.368,668.18,667.45,0.54221249]
[1748006876543,1.368,668.18,667.46,0.54221249]
[1748006876740,1.368,668.18,667.47,0.54221249]
[1748006877046,1.015,668.17,667.48,0.54182388]
[1748006877248,1.015,668.17,667.49,0.54184542]
[1748006877444,1.015,668.17,667.5,0.54184542]
[1748006877644,1.015,668.17,667.51,0.54184542]
[1748006877846,1.015,668.17,667.52,0.54184542]
[1748006878047,1.015,668.17,667.53,0.54184542]
[1748006878241,1.015,668.17,667.54,0.54184542]
[1748006878445,1.015,668.17,667.55,0.54184542]
[1748006878645,1.015,668.17,667.56,0.54184542]
[1748006878842,1.015,668.17,667.57,0.54184542]
[1748006879042,1.015,668.17,667.58,0.54178703]
[1748006879242,1.015,668.17,667.59,0.54178703]
[1748006879543,1.015,668.17,667.26,1.07204565]
[1748006879745,1.015,668.17,667.27,0.54181173]
[1748006880042,1.015,668.17,667.28,0.54181173]
[1748006880243,1.015,668.17,667.29,0.54181173]
[1748006880445,1.015,668.17,667.3,0.54181173]
[1748006880643,1.015,668.17,667.31,0.54182964]
[1748006880850,1.015,668.17,667.22,1.07204565]
[1748006880851,1.015,668.17,667.32,0.54182964]
[1748006881050,1.015,668.17,667.33,0.54182964]
[1748006881246,1.015,668.17,667.34,0.54182964]
[1748006881445,1.015,668.17,667.35,0.54182964]
[1748006881650,1.015,668.17,667.36,0.54182964]
[1748006881945,1.015,668.17,667.37,0.54178811]
[1748006882146,1.015,668.17,667.38,0.54178811]
[1748006882347,1.015,668.17,667.39,0.54178811]
[1748006882551,1.015,668.17,667.4,0.54178811]
[1748006882750,1.015,668.17,667.41,0.54178811]
[1748006882955,1.015,668.17,667.42,0.54178811]
[1748006883251,1.015,668.17,667.43,0.54178811]
[1748006883447,1.015,668.17,667.44,0.54178811]
[1748006883651,1.015,668.17,667.22,1.07204565]
[1748006883950,1.12283445,668.12,667.23,0.54163162]
[1748006884147,1.12283445,668.12,667.24,0.54163162]
[1748006884450,1.12283445,668.12,667.25,0.54163162]
[1748006884747,1.12283445,668.12,667.12,1.07204565]
[1748006885252,1.12283445,668.12,667.13,0.54189651]
[1748006885450,1.12283445,668.12,667.14,0.54189651]
[1748006885653,1.12283445,668.12,667.15,0.54189651]
[1748006885854,1.12283445,668.12,667.16,0.54189651]
[1748006886049,1.12283445,668.12,667.17,0.54189651]
[1748006886249,1.12283445,668.12,667.18,0.54189651]
[1748006886452,1.12283445,668.04,667.19,0.54189651]
[1748006886652,1.12283445,668.04,667.2,0.54189651]
[1748006886951,1.12283445,668.04,667.21,0.54189651]
[1748006887247,1.12283445,668.04,667.22,0.54189651]
[1748006887451,1.12283445,668.04,667.23,0.54189651]
[1748006887752,1.12283445,668.04,667.24,0.54141692]
[1748006887955,1.12283445,668.04,667.25,0.54142274]
[1748006888151,1.12283445,668.04,667.26,0.54142274]
[1748006888352,1.12283445,668.04,667.27,0.54142274]
[1748006888652,1.12283445,668.04,667.28,0.54142274]
[1748006888853,1.12283445,668.04,667.29,0.54142274]
[1748006889054,1.12283445,668.04,667.3,0.54142274]
[1748006889252,1.12283445,668.04,667.31,0.54142274]
[1748006889452,1.12283445,668.13,667.32,0.54142274]
[1748006889658,1.12283445,668.13,667.33,0.54101541]
[1748006889857,1.12283445,668.13,667.34,0.54101541]
[1748006890057,1.12283445,668.13,667.35,0.54101541]
[1748006890258,1.12283445,668.13,667.36,0.54101541]
[1748006890457,1.12283445,668.13,667.37,0.54101541]
[1748006890657,1.12283445,668.13,667.38,0.54101541]
[1748006890858,1.12283445,668.13,667.39,0.54101541]
[1748006891060,1.12283445,668.13,667.4,0.54101541]
[1748006891259,1.12283445,668.13,667.41,0.54077758]
[1748006891456,1.12283445,668.13,667.42,0.54070928]
[1748006891656,1.12283445,668.13,667.43,0.54070928]
[1748006891955,1.12283445,668.13,667.44,0.54070928]
[1748006892258,1.015,668.17,667.45,0.54070928]
[1748006892458,0.2993295,668.16,667.46,0.54070928]
[1748006892659,0.2993295,668.16,667.47,0.54070928]
[1748006892859,0.2993295,668.16,667.48,0.54070928]
[1748006893160,0.2993295,668.16,667.49,0.54070156]
[1748006893361,0.2993295,668.16,667.1,1.07204565]
[1748006893562,0.2993295,668.16,667.11,0.54077483]
[1748006893761,0.2993295,668.16,667.12,0.54077483]
[1748006893962,0.2993295,668.16,667.13,0.54077483]
[1748006894261,0.2993295,668.16,667.14,0.54077483]
[1748006894458,0.2993295,668.16,667.15,0.54077483]
[1748006894658,0.2993295,668.16,667.16,0.54077483]
[1748006894861,0.2993295,668.16,667.17,0.54077483]
[1748006895057,0.2993295,668.16,667.18,0.54077483]
[1748006895263,0.2993295,668.16,667.19,0.54077483]
[1748006895463,0.2993295,668.16,667.2,0.54077483]
[1748006895659,0.2993295,668.16,667.21,0.54077483]
[1748006895860,0.2993295,668.16,667.22,0.54077483]
[1748006896058,0.2993295,668.16,667.23,0.54077483]
[1748006896259,0.2993295,668.16,667.24,0.54077483]
[1748006896459,1.32,668.15,667.25,0.54077483]
[1748006896661,2.812,668.15,667.08,1.07204565]
[1748006896860,2.812,668.15,667.09,0.54095795]
[1748006897063,2.812,668.15,667.1,0.54095795]
[1748006897362,2.812,668.15,667.11,0.54095795]
[1748006897562,2.812,668.15,667.12,0.54095795]
[1748006897761,2.812,668.15,667.13,0.54095795]
[1748006897959,2.812,668.15,667.14,0.54095795]
[1748006898160,2.812,668.15,667.15,0.54095795]
[1748006898358,2.812,668.15,667.16,0.54095795]
[1748006898565,2.812,668.15,667.17,0.54095795]
[1748006898863,2.812,668.15,667.18,0.54095795]
[1748006899059,2.812,668.15,667.19,0.54080443]
[1748006899364,2.812,668.15,667.1,1.07204565]
[1748006899365,2.812,668.15,667.2,0.54080443]
[1748006899564,2.812,668.15,667.21,0.54080443]
[1748006899759,2.812,668.15,667.22,0.54080443]
[1748006899962,2.812,668.15,667.23,0.54080443]
[1748006900164,2.812,668.15,667.24,0.54080443]
[1748006900366,2.812,668.15,667.25,0.54065372]
[1748006900564,2.812,668.15,667.26,0.54065372]
[1748006900762,2.812,668.15,667.27,0.54065372]
[1748006900959,2.812,668.15,667.28,0.54065372]
[1748006901164,2.812,668.15,667.29,0.54065372]
[1748006901360,2.812,668.15,667.15,1.07204565]
[1748006901565,2.812,668.15,667.16,0.54092715]
[1748006901864,2.812,668.15,667.17,0.54092715]
[1748006902061,2.812,668.15,667.18,0.540932]
[1748006902265,2.812,668.15,667.19,0.540932]
[1748006902563,2.812,668.15,667.2,0.540932]
[1748006902764,2.812,668.15,667.21,0.540932]
[1748006902964,2.812,668.15,667.22,0.540932]
[1748006903164,2.812,668.15,667.23,0.540932]
[1748006903364,2.812,668.15,667.24,0.540932]
[1748006903665,2.812,668.15,667.25,0.540932]
[1748006903861,2.812,668.15,667.26,0.5412765]
[1748006904160,2.812,668.15,667.27,0.5412765]
[1748006904360,2.812,668.15,667.31,1.07204565]
[1748006904564,2.812,668.15,667.32,0.5412765]
[1748006904760,2.812,668.15,667.33,0.5412765]
[1748006904967,2.812,668.15,667.34,0.5412765]
[1748006905162,2.812,668.15,667.35,0.5412765]
[1748006905362,2.812,668.15,667.36,0.5412765]
[1748006905567,2.812,668.15,667.37,0.5412765]
[1748006905767,2.812,668.15,667.38,0.5412765]
[1748006906068,2.812,668.15,667.39,0.5412765]
[1748006906263,2.812,668.15,667.4,0.5412765]
[1748006906465,2.812,668.15,667.41,0.5412765]
[1748006906668,2.812,668.15,667.42,0.5412765]
[1748006906869,2.812,668.15,667.43,0.5412765]
[1748006907070,2.812,668.15,667.44,0.5412765]
[1748006907368,2.812,668.15,667.45,0.5412765]
[1748006907570,2.812,668.15,667.46,0.5412765]
[1748006907769,2.812,668.15,667.47,0.5412765]
[1748006908065,2.812,668.15,667.48,0.5412765]
[1748006908268,2.812,668.15,667.49,0.5412765]
[1748006908468,2.812,668.15,667.5,0.5412765]
[1748006908669,2.812,668.15,667.51,0.5412765]
[1748006908967,2.812,668.15,667.52,0.5412765]
[1748006909169,2.812,668.15,667.53,0.5412765]
[1748006909369,0.893,668.14,667.54,0.5412765]
[1748006909871,0.893,668.14,667.31,1.07204565]
[1748006910270,0.893,668.14,667.38,1.07204565]
[1748006910469,1.073,668.13,667.38,1.07204565]
[1748006913572,1.073,668.13,667.41,1.07204565]
[1748006916775,1.073,668.13,667.53,1.07204565]
[1748006917776,1.328,668.12,667.53,1.07204565]
[1748006919472,1.328,668.12,667.6,1.07204565]
[1748006922480,1.328,668.12,667.59,1.07204565]
[1748006925373,1.328,668.12,666.64,3.55507311]
[1748006925374,1.328,668.12,667.55,1.07204565]
[1748006927783,0.899,668.11,667.55,1.07204565]
[1748006928483,0.899,668.11,667.51,1.07204565]
[1748006929585,1.013,668.1,667.51,1.07204565]
[1748006931680,1.013,668.1,667.5,1.07204565]
[1748006935086,1.013,668.1,667.51,1.07204565]
[1748006941188,1.013,668.1,667.53,1.07204565]
[1748006942090,0.885,668.09,667.53,1.07204565]
[1748006942591,2.097,668.09,667.53,1.07204565]
[1748006944090,2.097,668.09,667.52,1.07204565]
[1748006947601,2.097,668.09,667.58,1.07204565]
[1748006950701,2.097,668.09,667.42,1.43068243]
[1748006950910,2.097,668.09,667.23,1.07204565]
[1748006951109,2.097,668.09,667.23,1.37179236]
[1748006953911,2.097,668.09,667.39,1.07204565]
[1748006956207,2.097,668.09,667.56,1.07204565]
[1748006959109,2.097,668.09,667.51,1.07204565]
[1748006962711,0.885,668.09,667.51,1.07204565]
[1748006964913,0.885,668.09,667.34,1.07204565]
[1748006965217,1.289,668.08,667.34,1.07204565]
[1748006968218,1.289,668.08,667.38,1.07204565]
[1748006970719,1.289,668.08,667.36,1.07204565]
[1748006973418,1.289,668.08,667.4,1.07204565]
[1748006976224,0.978,668.07,667.4,1.07204565]
[1748006977224,0.978,668.07,667.39,1.07204565]
[1748006978126,1.307,668.06,667.39,1.07204565]
[1748006980028,1.177,668.05,667.39,1.07204565]
[1748006980927,1.177,668.05,667.28,1.07204565]
[1748006984234,1.177,668.05,667.25,1.07204565]
[1748006987869,0.909,668.04,667.25,1.07204565]
[1748006988474,0.909,668.04,667.26,1.07204565]
[1748006990970,0.909,668.04,667.27,1.07204565]
[1748006993375,0.942,668.03,667.27,1.07204565]
[1748006994976,0.942,668.03,667.31,1.07204565]
[1748006995867,1.308,668.02,667.31,1.07204565]
[1748006998847,1.308,668.02,667.33,1.07204565]
[1748007001551,1.308,668.02,667.24,1.07204565]
[1748007004856,1.12283445,667.95,667.14,1.07204565]
[1748007007461,1.12283445,667.99,667.13,1.07204565]
[1748007010463,1.12283445,667.92,667.0,1.07204565]
[1748007013360,1.12283445,667.89,667.04,1.07204565]
[1748007016167,1.174,667.88,667.04,1.07204565]
[1748007016468,1.174,667.88,667.15,1.07204565]
[1748007019977,1.174,667.88,667.08,1.07204565]
[1748007021077,0.883,667.87,667.08,1.07204565]
[1748007023574,1.12283445,667.79,667.01,1.07204565]
[1748007027883,0.883,667.87,667.24,1.07204565]
[1748007030683,0.883,667.87,667.23,1.07204565]
[1748007033888,0.883,667.87,667.39,1.07204565]
[1748007036789,0.883,667.87,667.36,1.07204565]
[1748007039090,0.909,668.04,667.36,1.07204565]
[1748007039691,0.909,668.04,667.32,1.07204565]
[1748007039886,1.12283445,668.23,667.32,1.07204565]
[1748007043293,1.097,668.22,667.32,1.07204565]
[1748007043788,1.097,668.22,667.3,1.07204565]
[1748007046795,2.21983445,668.22,667.34,1.07204565]
[1748007050999,1.12283445,668.11,667.21,1.07204565]
[1748007053702,1.12283445,667.91,666.99,1.07204565]
[1748007056107,1.12283445,667.93,667.15,1.07204565]
[1748007058603,1.12283445,668.01,667.16,1.07204565]
[1748007060907,1.12283445,668.01,667.55,0.5419802]
[1748007061109,1.12283445,668.01,667.56,0.5419802]
[1748007061306,1.12283445,668.01,667.57,0.5419802]
[1748007061606,1.12283445,668.01,667.58,0.5419802]
[1748007061802,1.12283445,668.11,667.59,0.5419802]
[1748007062004,1.12283445,668.11,667.6,0.5419802]
[1748007062309,1.12283445,668.11,667.25,1.07204565]
[1748007062502,1.12283445,668.11,667.26,0.54263988]
[1748007062704,1.12283445,668.11,667.27,0.54263988]
[1748007062906,1.12283445,668.11,667.28,0.54263988]
[1748007063108,1.12283445,668.11,667.29,0.54263988]
[1748007063305,1.12283445,668.11,667.3,0.54263988]
[1748007063507,1.12283445,668.11,667.31,0.54263988]
[1748007063704,1.12283445,668.11,667.32,0.54263988]
[1748007064003,1.12283445,668.11,667.33,0.54263988]
[1748007064202,1.12283445,668.11,667.34,0.54263988]
[1748007064406,1.12283445,667.88,667.35,0.54263988]
[1748007064615,1.12283445,667.88,667.36,0.54263988]
[1748007064906,1.12283445,667.88,667.37,0.54263988]
[1748007065205,1.12283445,667.88,667.38,0.54263988]
[1748007065406,1.12283445,667.88,667.39,0.54263988]
[1748007065605,1.12283445,667.88,667.4,0.54263988]
[1748007065904,1.12283445,667.88,667.41,0.54263988]
[1748007066107,1.12283445,667.88,667.42,0.54263988]
[1748007066306,1.12283445,667.88,667.43,0.54263988]
[1748007066507,1.12283445,667.88,667.44,0.54263988]
[1748007066710,1.12283445,667.88,667.45,0.54263988]
[1748007066914,1.12283445,667.88,667.46,0.54263988]
[1748007067110,1.12283445,667.88,667.47,0.54263988]
[1748007067309,1.12283445,667.88,667.48,0.54263988]
[1748007067513,1.12283445,667.88,667.49,0.54384908]
[1748007067712,1.12283445,667.88,667.5,0.54384908]
[1748007067911,1.12283445,667.88,667.05,1.07204565]
[1748007068110,1.12283445,668.05,667.11,1.07204565]
[1748007068315,1.12283445,668.05,667.12,0.54375338]
[1748007068614,1.12283445,668.05,667.13,0.54375338]
[1748007068811,1.12283445,668.05,667.14,0.54375338]
[1748007069009,1.12283445,668.05,667.15,0.54375338]
[1748007069216,1.12283445,668.05,667.16,0.54375338]
[1748007069411,1.12283445,668.05,667.17,0.54375338]
[1748007069617,1.12283445,668.05,667.18,0.54375338]
[1748007069811,1.12283445,668.05,667.19,0.54375338]
[1748007070016,1.12283445,668.05,667.2,0.54375338]
[1748007070213,1.12283445,668.05,667.21,0.54375338]
[1748007070417,1.12283445,668.05,667.22,0.54375338]
[1748007070615,1.12283445,668.05,667.23,0.54375338]
[1748007070816,1.12283445,668.05,667.24,0.54375338]
[1748007071015,1.12283445,668.05,667.25,0.54375338]
[1748007071212,1.12283445,668.05,667.26,0.54375338]
[1748007071414,1.12283445,668.05,667.27,0.54375338]
[1748007071612,1.12283445,668.05,667.29,1.07204565]
[1748007071818,1.12283445,668.12,667.3,0.54375338]
[1748007072115,1.12283445,668.12,667.31,0.54375338]
[1748007072313,1.12283445,668.12,667.32,0.54375338]
[1748007072517,1.12283445,668.12,667.33,0.54375338]
[1748007072815,1.12283445,668.12,667.34,0.54375338]
[1748007073016,1.12283445,668.12,667.35,0.54375338]
[1748007073220,1.12283445,668.12,667.36,0.54375338]
[1748007073418,1.12283445,668.12,667.37,0.54375338]
[1748007073620,1.12283445,668.12,667.38,0.54375338]
[1748007073820,1.12283445,668.12,667.39,0.54375338]
[1748007074021,1.12283445,668.12,667.4,0.54375338]
[1748007074224,1.12283445,668.12,667.41,0.54375338]
[1748007074415,1.12283445,668.12,667.42,0.54375338]
[1748007074722,1.12283445,668.12,667.43,0.543919]
[1748007074921,1.12283445,668.06,667.44,0.543919]
[1748007075125,1.12283445,668.06,667.45,0.543919]
[1748007075320,1.12283445,668.06,667.46,0.543919]
[1748007075520,1.12283445,668.06,667.47,0.543919]
[1748007075720,1.12283445,668.06,667.48,0.543919]
[1748007075922,1.12283445,668.06,667.49,0.543919]
[1748007076123,1.12283445,668.06,667.5,0.54385919]
[1748007076322,1.12283445,668.06,667.51,0.54385919]
[1748007076523,1.12283445,668.06,667.52,0.54385919]
[1748007076722,1.12283445,668.06,667.53,0.54385919]
[1748007076923,1.12283445,668.06,667.54,0.54385919]
[1748007077224,1.12283445,668.06,667.55,0.54385919]
[1748007077424,1.12283445,668.06,667.56,0.54385919]
[1748007077622,1.12283445,668.06,667.57,0.54385919]
[1748007077823,1.12283445,668.06,667.58,0.54385919]
[1748007078022,1.12283445,668.06,667.59,0.54385919]
[1748007078323,1.12283445,668.14,667.6,0.54385919]
[1748007078522,1.12283445,668.14,667.61,0.54385919]
[1748007078825,1.12283445,668.14,667.62,0.54385919]
[1748007079025,1.12283445,668.14,667.63,0.54385919]
[1748007079327,1.12283445,668.14,667.64,0.54385919]
[1748007079526,1.12283445,668.14,667.65,0.54385919]
[1748007079720,1.12283445,668.14,667.66,0.54385919]
[1748007079921,1.12283445,668.14,667.67,0.54385919]
[1748007080224,1.12283445,668.14,667.68,0.54385919]
[1748007080519,1.12283445,668.14,667.69,0.54385919]
[1748007080724,1.12283445,668.14,667.7,0.54385919]
[1748007080922,1.12283445,668.14,667.71,0.54385919]
[1748007081121,1.12283445,668.14,667.72,0.54385919]
[1748007081323,1.12283445,668.14,667.73,0.54294708]
[1748007081527,1.12283445,668.14,667.74,0.54294708]
[1748007081724,1.168,668.3,667.75,0.54294708]
[1748007081925,1.168,668.3,667.76,0.54294708]
[1748007082122,1.168,668.3,667.77,0.54294708]
[1748007082322,1.168,668.3,667.78,0.54294708]
[1748007082526,1.168,668.3,667.79,0.54347357]
[1748007082729,1.168,668.3,667.51,1.07204565]
[1748007082928,1.168,668.3,667.52,0.54346005]
[1748007083124,1.168,668.3,667.53,0.54349903]
[1748007083325,1.168,668.3,667.54,0.54349903]
[1748007083527,1.168,668.3,667.55,0.54349903]
[1748007083727,1.168,668.3,667.56,0.54349903]
[1748007084028,1.168,668.3,667.57,0.54349903]
[1748007084329,1.168,668.3,667.58,0.54349903]
[1748007084627,1.168,668.3,667.59,0.54349903]
[1748007084828,1.168,668.3,667.6,0.54349903]
[1748007085021,1.168,668.3,667.61,0.54349903]
[1748007085226,1.168,668.3,667.62,0.54349903]
[1748007085423,1.12283445,668.24,667.63,0.54349903]
[1748007085725,1.12283445,668.24,667.64,0.54349903]
[1748007085927,1.12283445,668.24,667.65,0.54349903]
[1748007086228,1.12283445,668.24,667.43,1.07204565]
[1748007086626,1.12283445,668.24,667.44,0.54425259]
[1748007086821,1.12283445,668.24,667.45,0.54425259]
[1748007087030,1.12283445,668.24,667.46,0.54425259]
[1748007087229,1.12283445,668.24,667.47,0.54425259]
[1748007087426,1.12283445,668.24,667.48,0.54425259]
[1748007087630,1.12283445,668.24,667.49,0.54425259]
[1748007087831,1.12283445,668.24,667.5,0.54425259]
[1748007088032,1.12283445,668.24,667.51,0.54425259]
[1748007088330,1.12283445,668.24,667.52,0.54425259]
[1748007088532,1.12283445,668.11,667.53,0.54425259]
[1748007088827,1.12283445,668.11,667.12,1.07204565]
[1748007089131,1.12283445,668.11,667.13,0.84484999]